bitfinex/quotes_SOLUSD_20250904
["timestamp","ask_amount","ask_price","bid_price","bid_amount"]
[1757005389905,0.06,205.17,205.15,4.87447077]
[1757005390092,0.06,205.17,205.16,0.68]
[1757005390496,0.06,205.17,205.15,8.49229954]
[1757005390688,0.06,205.17,205.15,9.17229954]
[1757005390888,0.06,205.17,205.15,5.55447077]
[1757005391093,0.06,205.17,205.16,0.68]
[1757005392101,0.06,205.17,205.16,4.29598515]
[1757005392792,0.06,205.17,205.16,9.17022964]
[1757005394909,0.06,205.17,205.16,12.04958163]
[1757005396808,0.06,205.17,205.16,9.17022964]
[1757005397605,0.06,205.17,205.16,8.49022964]
[1757005397813,0.06,205.17,205.16,4.87424449]
[1757005398386,0.06,205.17,205.16,5.59424449]
[1757005398591,0.06,205.17,205.16,9.21022964]
[1757005398793,0.06,205.17,205.16,5.59424449]
[1757005398997,0.06,205.17,205.16,8.49022964]
[1757005399187,0.06,205.17,205.16,8.482005]
[1757005399394,3.59935199,205.17,205.15,4.87446738]
[1757005399610,0.72,205.17,205.15,4.87446738]
[1757005400107,0.06,205.17,205.15,4.87446738]
[1757005403611,0.06,205.17,205.16,0.72]
[1757005403917,0.06,205.17,205.16,8.82518074]
[1757005404294,0.06,205.17,205.16,8.82396302]
[1757005404996,0.06,205.17,205.16,13.69820751]
[1757005405193,0.06,205.17,205.16,9.20078728]
[1757005405411,0.06,205.17,205.16,13.69820751]
[1757005405716,0.06,205.17,205.16,39.69820751]
[1757005406121,1e-08,205.17,205.16,39.69820751]
[1757005406615,25.9022193,205.24,205.16,51.88381874]
[1757005406796,25.9022193,205.24,205.21,4.49742023]
[1757005407197,26.5622193,205.24,205.22,4.87281941]
[1757005407804,25.9022193,205.24,205.22,4.87281941]
[1757005408332,25.9022193,205.24,205.21,4.49742023]
[1757005408510,0.66,205.23,205.19,8.47477047]
[1757005408808,25.9022193,205.24,205.2,0.72]
[1757005409023,26.5622193,205.24,205.2,5.21742023]
[1757005409207,26.5622193,205.24,205.2,9.19448149]
[1757005409529,26.5622193,205.24,205.2,10.09066309]
[1757005409705,0.66,205.23,205.2,4.87324286]
[1757005410020,0.66,205.22,205.2,4.87324286]
[1757005410925,4.49742023,205.23,205.2,4.87324286]
[1757005411130,0.66,205.23,205.2,4.87324286]
[1757005411509,4.49742023,205.21,205.19,3.60168847]
[1757005411730,5.15742023,205.2,205.16,3.60262601]
[1757005412021,5.15742023,205.19,205.15,0.03]
[1757005412206,0.66,205.19,205.15,4.35262601]
[1757005412416,35.99202013,205.24,205.16,4.87418918]
[1757005412620,4.49742023,205.2,205.16,4.87418918]
[1757005412828,5.15742023,205.19,205.16,4.87418918]
[1757005413135,0.66,205.18,205.16,4.87418918]
[1757005413300,4.49742023,205.19,205.16,4.87418918]
[1757005413624,5.15742023,205.19,205.16,4.87418918]
[1757005415012,0.66,205.21,205.17,0.72]
[1757005415217,5.15742023,205.21,205.17,0.72]
[1757005415422,5.15742023,205.21,205.17,4.32262601]
[1757005415630,0.66,205.21,205.17,3.60262601]
[1757005415831,0.66,205.2,205.16,12.97423542]
[1757005416016,0.66,205.2,205.16,13.69423542]
[1757005416215,0.66,205.2,205.17,8.47646996]
[1757005416418,4.49742023,205.22,205.17,10.09126418]
[1757005416612,4.49742023,205.22,205.18,0.72]
[1757005416810,0.66,205.21,205.18,3.60262601]
[1757005417407,0.66,205.21,205.18,3.6057495]
[1757005417607,0.66,205.21,205.17,9.37126418]
[1757005417819,4.49742023,205.22,205.17,13.69687854]
[1757005418027,4.49742023,205.22,205.18,0.72]
[1757005418333,0.66,205.23,205.19,0.72]
[1757005418522,25.9022193,205.24,205.17,12.97687854]
[1757005418523,25.9022193,205.24,205.2,5.21742023]
[1757005419526,26.5622193,205.24,205.2,5.21742023]
[1757005419830,25.9022193,205.24,205.21,0.72]
[1757005420337,25.9022193,205.24,205.2,9.37070603]
[1757005420831,26.5622193,205.24,205.2,10.09070603]
[1757005421627,26.5622193,205.24,205.19,4.49742023]
[1757005421828,5.15742023,205.23,205.18,4.87356081]
[1757005422022,5.15742023,205.22,205.17,0.72]
[1757005422336,5.15742023,205.22,205.18,3.60847693]
[1757005422639,4.49742023,205.2,205.19,3.60847693]
[1757005422806,4.49742023,205.2,205.16,3.60847693]
[1757005423012,5.15742023,205.19,205.16,3.60847693]
[1757005423225,0.66,205.19,205.17,3.60847693]
[1757005423440,14.65022586,205.23,205.16,3.60847693]
[1757005423618,4.49742023,205.2,205.17,3.60847693]
[1757005423823,4.49742023,205.18,205.16,3.60847693]
[1757005424134,4.49742023,205.19,205.16,3.60847693]
[1757005424330,5.15742023,205.19,205.16,3.60847693]
[1757005424624,0.66,205.19,205.17,3.60847693]
[1757005424934,42.65283594,205.22,205.18,3.60962512]
[1757005424935,0.66,205.22,205.18,3.60962512]
[1757005425117,56.8346086,205.24,205.19,4.32962512]
[1757005425118,4.49742023,205.23,205.19,4.32962512]
[1757005425445,5.15742023,205.23,205.2,3.60962512]
[1757005425936,4.49742023,205.22,205.2,3.60962512]
[1757005427229,4.49742023,205.22,205.18,4.8737131]
[1757005427230,0.66,205.23,205.19,3.60962512]
[1757005427431,4.49742023,205.22,205.2,3.60962512]
[1757005427731,4.49742023,205.22,205.19,3.60962512]
[1757005427934,5.15742023,205.23,205.2,3.60962512]
[1757005428141,5.15742023,205.23,205.19,3.60962512]
[1757005428315,5.15742023,205.23,205.2,3.61014517]
[1757005428613,5.15742023,205.23,205.18,5.5937131]
[1757005428814,5.15742023,205.23,205.19,3.6098453]
[1757005429112,5.15742023,205.23,205.2,3.6098453]
[1757005429327,5.15742023,205.23,205.19,4.87351794]
[1757005429522,5.15742023,205.23,205.2,3.60997756]
[1757005429720,5.15742023,205.23,205.18,5.59374072]
[1757005429922,5.15742023,205.23,205.19,3.60997799]
[1757005430122,5.16742023,205.22,205.2,3.60997799]
[1757005430320,5.16742023,205.22,205.19,3.60997799]
[1757005430530,5.16742023,205.21,205.2,3.60997799]
[1757005430731,5.16742023,205.21,205.17,3.61103655]
[1757005430933,4.49742023,205.2,205.18,3.61103655]
[1757005431119,4.49742023,205.2,205.16,3.61103655]
[1757005431320,4.49742023,205.2,205.17,3.61198694]
[1757005431521,5.16742023,205.2,205.18,3.61198694]
[1757005431726,5.16742023,205.2,205.16,0.67]
[1757005431925,5.16742023,205.2,205.17,3.61190155]
[1757005432134,5.16742023,205.2,205.18,3.61190155]
[1757005432335,5.16742023,205.2,205.16,0.67]
[1757005432534,5.16742023,205.2,205.17,3.61226418]
[1757005432732,5.16742023,205.2,205.18,3.61226418]
[1757005432929,0.67,205.2,205.16,0.67]
[1757005433126,5.16742023,205.2,205.17,3.61246601]
[1757005433340,5.16742023,205.2,205.18,3.61246601]
[1757005433542,5.16742023,205.2,205.16,0.67]
[1757005433730,5.16742023,205.2,205.17,3.61283659]
[1757005433938,5.16742023,205.2,205.18,3.61283659]
[1757005434138,5.16742023,205.2,205.16,0.67]
[1757005434334,5.16742023,205.2,205.17,3.61321663]
[1757005434541,5.16742023,205.2,205.18,3.61321663]
[1757005434739,4.49742023,205.22,205.16,10.04163687]
[1757005434941,5.16742023,205.22,205.18,0.67]
[1757005435132,5.16742023,205.22,205.19,3.61241488]
[1757005435331,5.16742023,205.22,205.18,0.67]
[1757005435529,5.16742023,205.22,205.19,3.61293788]
[1757005436248,5.16742023,205.22,205.18,0.67]
[1757005436448,5.16742023,205.22,205.19,3.61362532]
[1757005436652,5.16742023,205.22,205.18,0.67]
[1757005436845,5.16742023,205.22,205.19,3.61413317]
[1757005437036,5.16742023,205.22,205.18,0.67]
[1757005437241,5.16742023,205.22,205.19,3.61413317]
[1757005437545,0.67,205.22,205.18,5.54372081]
[1757005437750,5.16742023,205.22,205.19,3.6144112]
[1757005437955,5.16742023,205.22,205.18,5.54372081]
[1757005438249,5.16742023,205.21,205.19,3.6144112]
[1757005438453,5.16742023,205.21,205.17,5.54394982]
[1757005438648,5.16742023,205.21,205.18,3.61458353]
[1757005438835,5.16742023,205.21,205.19,3.61458353]
[1757005439033,5.16742023,205.21,205.17,5.54394982]
[1757005439235,5.16742023,205.21,205.18,3.61488331]
[1757005439437,5.16742023,205.21,205.19,3.61488331]
[1757005439636,5.16742023,205.21,205.17,5.54394982]
[1757005439854,5.16742023,205.21,205.18,3.61614589]
[1757005440150,4.49742023,205.21,205.19,3.61614589]
[1757005440353,5.16742023,205.2,205.16,4.8741979]
[1757005440649,5.16742023,205.2,205.17,3.61636208]
[1757005440861,5.16742023,205.2,205.18,3.61636208]
[1757005441030,0.67,205.2,205.19,3.61636208]
[1757005441236,4.49742023,205.21,205.19,3.61636208]
[1757005441442,5.16742023,205.21,205.17,0.7]
[1757005441645,4.49742023,205.21,205.18,4.2874935]
[1757005441845,4.49742023,205.21,205.19,3.6174935]
[1757005442142,4.49742023,205.21,205.18,0.67]
[1757005442345,4.49742023,205.21,205.19,4.28729394]
[1757005442547,4.49742023,205.21,205.17,0.7]
[1757005442849,5.16742023,205.2,205.18,3.61627671]
[1757005443058,5.16742023,205.2,205.19,3.61627671]
[1757005443243,0.67,205.2,205.19,3.61627671]
[1757005443742,4.49742023,205.21,205.19,3.61627671]
[1757005443945,5.16742023,205.21,205.17,0.03]
[1757005444249,5.16742023,205.21,205.18,3.61580588]
[1757005444435,5.16742023,205.21,205.19,3.61580588]
[1757005444631,0.67,205.21,205.17,0.7]
[1757005444843,4.49742023,205.22,205.18,4.28532557]
[1757005445057,5.16742023,205.22,205.19,3.61532557]
[1757005445359,5.16742023,205.22,205.2,3.6155464]
[1757005445538,5.16742023,205.22,205.18,0.67]
[1757005445740,5.16742023,205.22,205.19,3.61521638]
[1757005445945,5.16742023,205.22,205.2,3.61521638]
[1757005446253,5.16742023,205.21,205.17,0.7]
[1757005446438,4.49742023,205.2,205.18,3.61560876]
[1757005446630,5.16742023,205.2,205.19,3.61560876]
[1757005447144,4.49742023,205.2,205.19,3.61560876]
[1757005448344,4.49742023,205.2,205.19,3.61644769]
[1757005449056,4.49742023,205.21,205.19,3.61644769]
[1757005449258,0.67,205.21,205.17,0.7]
[1757005449453,5.16742023,205.21,205.18,3.61623713]
[1757005449752,5.16742023,205.21,205.19,3.61623713]
[1757005449956,5.16742023,205.21,205.2,3.61549424]
[1757005450347,4.49742023,205.21,205.2,3.61549424]
[1757005450548,0.67,205.23,205.2,3.61549424]
[1757005450752,4.49742023,205.21,205.18,0.67]
[1757005451060,5.16742023,205.21,205.19,3.61554848]
[1757005451360,5.16742023,205.21,205.17,4.90399738]
[1757005451560,5.16742023,205.21,205.18,3.61621993]
[1757005451861,5.16742023,205.21,205.19,3.61621993]
[1757005452038,5.16742023,205.21,205.17,5.57399738]
[1757005452351,5.16742023,205.21,205.18,3.61621993]
[1757005452553,5.16742023,205.21,205.19,3.61621993]
[1757005452755,5.16742023,205.21,205.18,0.67]
[1757005452961,5.16742023,205.21,205.19,3.61681819]
[1757005453148,5.16742023,205.21,205.2,3.61772202]
[1757005453850,0.67,205.21,205.2,3.61772202]
[1757005454055,5.16742023,205.21,205.2,3.61772202]
[1757005455752,4.87275172,205.23,205.2,3.61772202]
[1757005455956,5.16742023,205.21,205.17,5.57399738]
[1757005456144,5.16742023,205.21,205.18,3.61897882]
[1757005456344,5.16742023,205.21,205.19,3.61897882]
[1757005456549,5.16742023,205.21,205.2,3.61897882]
[1757005456550,0.67,205.21,205.2,3.61897882]
[1757005456944,5.16742023,205.21,205.2,3.61897882]
[1757005458160,25.9622193,205.24,205.2,3.61897882]
[1757005458359,25.9622193,205.24,205.21,4.28897882]
[1757005458663,30.45963953,205.24,205.22,3.61897882]
[1757005458874,25.9622193,205.24,205.21,0.67]
[1757005459036,25.9622193,205.24,205.22,4.28780347]
[1757005459242,25.9622193,205.24,205.23,3.61780347]
[1757005459461,25.9622193,205.24,205.23,4.28780347]
[1757005460660,25.9622193,205.24,205.23,13.65780568]
[1757005461658,25.9622193,205.24,205.23,9.16038545]
[1757005461963,25.9622193,205.24,205.23,13.65780568]
[1757005462770,25.9622193,205.24,205.23,18.43964185]
[1757005463345,25.9622193,205.24,205.23,9.06963964]
[1757005463560,25.9622193,205.24,205.23,18.43964185]
[1757005465452,25.9622193,205.24,205.23,13.20006379]
[1757005465672,25.9622193,205.24,205.23,16.80958185]
[1757005468058,25.9622193,205.24,205.23,13.93393621]
[1757005468261,25.9622193,205.24,205.23,16.80958185]
[1757005469770,25.9622193,205.24,205.23,11.93699987]
[1757005470072,25.9622193,205.24,205.23,16.80958185]
[1757005470882,25.9622193,205.24,205.23,13.26393621]
[1757005471044,25.9622193,205.24,205.23,16.80958185]
[1757005475785,25.9622193,205.24,205.23,13.93393621]
[1757005475971,25.9622193,205.24,205.23,8.39135423]
[1757005476284,25.9622193,205.24,205.23,54.54958185]
[1757005477286,25.9622193,205.24,205.23,53.87958185]
[1757005477580,25.9622193,205.24,205.23,16.13958185]
[1757005477783,25.9622193,205.24,205.23,51.00393621]
[1757005477979,25.9622193,205.24,205.23,53.87958185]
[1757005478579,25.9622193,205.24,205.23,54.54958185]
[1757005479568,25.9622193,205.24,205.23,16.80958185]
[1757005479782,25.9622193,205.24,205.23,16.80371415]
[1757005480288,25.9622193,205.24,205.23,54.52371415]
[1757005480884,25.9622193,205.24,205.23,53.85371415]
[1757005481695,25.9622193,205.24,205.23,54.52371415]
[1757005481877,25.9622193,205.24,205.23,51.64806851]
[1757005482079,25.9622193,205.24,205.23,54.52371415]
[1757005482380,25.9622193,205.24,205.23,53.85369971]
[1757005482897,25.9622193,205.24,205.23,50.97805407]
[1757005483078,25.9622193,205.24,205.23,53.85369971]
[1757005483480,25.9622193,205.24,205.23,54.52369971]
[1757005488688,25.9622193,205.24,205.23,16.80369971]
[1757005488877,25.9622193,205.24,205.23,54.52369971]
[1757005489570,25.9622193,205.24,205.23,13.92805407]
[1757005489783,25.9622193,205.24,205.23,54.52369971]
[1757005490289,0.06,205.24,205.23,54.52369971]
[1757005490493,0.06,205.24,205.23,92.28969979]
[1757005490677,0.06,205.24,205.23,95.16534543]
[1757005491271,0.06,205.24,205.23,57.44534543]
[1757005491474,0.06,205.24,205.23,94.49534543]
[1757005491889,0.06,205.24,205.23,95.16534543]
[1757005494979,0.06,205.24,205.23,57.44534543]
[1757005495175,0.06,205.24,205.23,95.16534543]
[1757005495377,0.06,205.24,205.23,57.44534543]
[1757005495603,0.06,205.24,205.23,95.16534543]
[1757005499108,0.06,205.24,205.23,92.28969979]
[1757005499402,0.06,205.24,205.23,95.16534543]
[1757005500277,0.06,205.24,205.23,57.44534543]
[1757005500478,0.06,205.24,205.23,95.14534543]
[1757005500678,0.06,205.24,205.23,57.44883937]
[1757005500878,0.06,205.24,205.23,95.14883937]
[1757005501096,0.06,205.24,205.23,54.57319373]
[1757005501295,0.06,205.24,205.23,136.77883937]
[1757005501496,0.06,205.24,205.23,175.14883937]
[1757005501981,1e-08,205.24,205.23,69.14883937]
[1757005502502,0.06,205.27,205.26,26.0]
[1757005502678,0.06,205.27,205.26,70.1827755]
[1757005502880,0.06,205.27,205.26,33.1527755]
[1757005503177,0.06,205.27,205.26,72.80482203]
[1757005503376,0.06,205.27,205.26,77.67669185]
[1757005505826,0.77,205.27,205.26,48.13104621]
[1757005506110,0.77,205.27,205.26,51.00669185]
[1757005506305,0.06,205.27,205.26,51.00669185]
[1757005507282,0.06,205.27,205.26,39.30669185]
[1757005507283,0.77,205.27,205.26,39.30669185]
[1757005507481,0.77,205.27,205.26,77.00669185]
[1757005507916,0.77,205.27,205.26,10.43104621]
[1757005508212,0.77,205.27,205.26,46.17901732]
[1757005508588,0.06,205.27,205.26,49.05466296]
[1757005508909,0.06,205.27,205.26,53.88252803]
[1757005509090,0.06,205.27,205.26,54.55252803]
[1757005509710,0.06,205.27,205.26,53.88252803]
[1757005509914,0.77,205.27,205.26,16.18252803]
[1757005510091,0.77,205.27,205.26,46.17901732]
[1757005510802,0.77,205.27,205.26,49.05466296]
[1757005512320,0.77,205.27,205.26,8.47901732]
[1757005512616,0.77,205.27,205.26,46.17901732]
[1757005513005,0.77,205.27,205.26,8.47901732]
[1757005513210,0.77,205.27,205.26,46.17901732]
[1757005513611,0.77,205.27,205.26,46.18228021]
[1757005513812,0.77,205.27,205.26,49.05792585]
[1757005514120,0.77,205.27,205.26,46.18228021]
[1757005514319,0.77,205.27,205.26,49.05792585]
[1757005516120,0.77,205.27,205.26,46.18228021]
[1757005516430,0.77,205.27,205.26,49.05792585]
[1757005517120,0.77,205.27,205.26,46.18145354]
[1757005517713,0.06,205.27,205.26,46.88145354]
[1757005517909,0.71,205.27,205.26,46.18145354]
[1757005518227,0.06,205.27,205.26,49.05709918]
[1757005518436,0.06,205.27,205.26,46.18145354]
[1757005518615,0.06,205.27,205.26,49.05709918]
[1757005520633,0.0117235,205.27,205.26,49.75706107]
[1757005521129,0.0117235,205.27,205.26,51.7092805]
[1757005523726,0.06,205.3,205.26,169.88895505]
[1757005523911,0.06,205.3,205.29,2.87564564]
[1757005524108,1e-08,205.3,205.29,55.68777381]
[1757005524349,1e-08,205.3,205.29,44.88519125]
[1757005524511,1e-08,205.3,205.29,46.83702964]
[1757005525119,1e-08,205.3,205.29,9.13702964]
[1757005525326,1e-08,205.3,205.29,46.81702964]
[1757005525530,1e-08,205.3,205.29,51.68818751]
[1757005527526,1e-08,205.3,205.29,53.30089283]
[1757005528036,1e-08,205.3,205.29,15.62089283]
[1757005528355,1e-08,205.3,205.29,53.30089283]
[1757005529338,1e-08,205.3,205.29,83.78924379]
[1757005529923,1.95183839,205.4,205.35,4.48835096]
[1757005530118,1.95183839,205.4,205.36,41.28954561]
[1757005530337,1.95183839,205.4,205.37,3.60954561]
[1757005530643,0.65,205.4,205.38,41.28435335]
[1757005530829,4.48835096,205.45,205.39,8.09270431]
[1757005531030,14.63593121,205.42,205.39,8.09270431]
[1757005531228,14.63593121,205.42,205.41,4.48835096]
[1757005531428,0.65,205.42,205.41,4.48835096]
[1757005531626,0.65,205.42,205.41,9.35666311]
[1757005531836,0.65,205.42,205.41,12.95601043]
[1757005532038,0.65,205.42,205.41,27.58837234]
[1757005532344,0.65,205.42,205.41,23.98902502]
[1757005533051,0.65,205.42,205.41,47.03666311]
[1757005533351,0.65,205.42,205.41,9.35666311]
[1757005533521,0.65,205.42,205.41,47.03666311]
[1757005535040,0.65,205.45,205.41,47.03666311]
[1757005535248,0.65,205.44,205.41,42.54831215]
[1757005535552,0.65,205.43,205.41,42.54831215]
[1757005535719,0.65,205.42,205.41,47.03666311]
[1757005535924,0.65,205.44,205.41,47.03666311]
[1757005536144,0.65,205.43,205.42,4.48835096]
[1757005536523,0.65,205.45,205.42,4.48835096]
[1757005536724,0.65,205.45,205.44,4.48835096]
[1757005536944,32.60270065,205.47,205.43,42.16835096]
[1757005537538,33.25270065,205.47,205.46,9.35547838]
[1757005537850,32.60270065,205.47,205.46,9.35547838]
[1757005538231,33.25270065,205.47,205.46,9.35547838]
[1757005538651,33.25270065,205.47,205.46,42.52712742]
[1757005539237,33.25270065,205.47,205.46,47.01547838]
[1757005540254,33.25270065,205.47,205.46,42.52712742]
[1757005540455,33.25270065,205.47,205.46,47.01547838]
[1757005540751,33.25270065,205.47,205.46,42.14835096]
[1757005540931,33.25270065,205.47,205.45,9.35565927]
[1757005541125,0.65,205.46,205.4,4.48835096]
[1757005541335,5.13835096,205.45,205.41,37.66]
[1757005541626,0.65,205.44,205.41,37.66]
[1757005541946,37.46962123,205.47,205.41,47.01657355]
[1757005541947,0.65,205.43,205.41,47.01657355]
[1757005542145,0.65,205.45,205.41,47.01657355]
[1757005542335,0.65,205.44,205.41,47.01657355]
[1757005542841,51.72269986,205.47,205.42,4.48835096]
[1757005543046,51.72269986,205.47,205.41,42.52822259]
[1757005543047,0.65,205.46,205.43,4.48835096]
[1757005543555,0.65,205.46,205.43,42.14835096]
[1757005543754,0.65,205.46,205.43,47.01607673]
[1757005544057,0.65,205.45,205.43,47.01607673]
[1757005544452,0.65,205.45,205.43,42.52772577]
[1757005545248,0.65,205.44,205.42,14.63022116]
[1757005545449,32.60270065,205.47,205.43,37.66]
[1757005545758,32.60270065,205.47,205.41,38.36]
[1757005545939,0.65,205.46,205.43,4.48835096]
[1757005546138,0.65,205.45,205.41,4.86826654]
[1757005546334,5.13835096,205.44,205.4,14.63236191]
[1757005546552,0.65,205.43,205.39,42.14835096]
[1757005546757,0.65,205.43,205.39,42.84835096]
[1757005547242,0.65,205.43,205.4,4.48835096]
[1757005547443,14.63307563,205.44,205.4,5.18835096]
[1757005547648,0.72,205.44,205.4,5.18835096]
[1757005548847,0.72,205.46,205.41,5.14835096]
[1757005549034,0.72,205.45,205.41,4.48835096]
[1757005549233,0.72,205.44,205.41,37.66]
[1757005549462,0.72,205.44,205.41,42.14835096]
[1757005549654,5.20835096,205.43,205.39,37.66]
[1757005549857,0.72,205.42,205.39,37.66]
[1757005550055,0.72,205.41,205.38,37.66]
[1757005550239,4.48835096,205.43,205.38,37.66]
[1757005550562,0.72,205.43,205.39,0.66]
[1757005550744,0.72,205.43,205.39,5.52856652]
[1757005551440,5.20835096,205.43,205.39,5.52856652]
[1757005551748,0.72,205.43,205.39,10.01691748]
[1757005551947,0.72,205.43,205.39,5.52856652]
[1757005552449,0.72,205.43,205.39,10.01691748]
[1757005553256,0.72,205.46,205.4,0.66]
[1757005553457,5.20835096,205.46,205.4,5.14835096]
[1757005553638,0.72,205.46,205.4,5.14835096]
[1757005553841,0.72,205.45,205.4,5.14835096]
[1757005554154,0.72,205.44,205.4,5.14835096]
[1757005554353,4.48835096,205.46,205.4,4.48835096]
[1757005554660,5.20835096,205.46,205.41,5.14835096]
[1757005554844,5.20835096,205.46,205.42,0.66]
[1757005555161,0.03,205.43,205.42,5.52807516]
[1757005555352,0.03,205.43,205.42,4.86807516]
[1757005556565,0.03,205.43,205.41,9.35666311]
[1757005556757,0.03,205.43,205.41,10.01666311]
[1757005556958,0.03,205.43,205.42,0.66]
[1757005558061,0.03,205.43,205.41,9.35666311]
[1757005558242,0.03,205.43,205.41,10.01666311]
[1757005558660,0.03,205.43,205.41,4.86831215]
[1757005558869,0.03,205.43,205.41,9.35666311]
[1757005559168,0.75,205.43,205.4,47.01684304]
[1757005559540,0.03,205.43,205.4,4.86849208]
[1757005559743,0.72,205.42,205.39,42.52873461]
[1757005560141,0.72,205.41,205.37,84.48835096]
[1757005560344,0.72,205.41,205.37,38.32]
[1757005560548,0.72,205.41,205.38,0.66]
[1757005560837,4.48835096,205.42,205.38,0.66]
[1757005561062,5.23835096,205.43,205.37,8.07714062]
[1757005561246,0.75,205.43,205.39,0.66]
[1757005561446,5.23835096,205.43,205.39,0.66]
[1757005563066,4.51835096,205.43,205.39,0.66]
[1757005563254,0.72,205.42,205.38,4.86890727]
[1757005563562,4.51835096,205.43,205.38,4.86890727]
[1757005563760,0.72,205.41,205.37,4.48835096]
[1757005564066,5.20835096,205.41,205.37,3.59282166]
[1757005564268,4.48835096,205.42,205.38,0.66]
[1757005564445,0.72,205.41,205.37,12.95038424]
[1757005564644,0.72,205.41,205.37,13.61038424]
[1757005564851,0.03,205.43,205.38,5.14835096]
[1757005565050,0.72,205.42,205.38,5.14835096]
[1757005565251,0.72,205.41,205.38,4.25629776]
[1757005565652,0.72,205.41,205.38,0.66]
[1757005565845,0.72,205.41,205.38,4.25629776]
[1757005566053,4.48835096,205.42,205.39,0.66]
[1757005566268,5.20835096,205.42,205.39,0.66]
[1757005566469,5.20835096,205.42,205.38,3.59629776]
[1757005566776,0.72,205.42,205.39,9.35695094]
[1757005566953,0.03,205.43,205.39,10.01695094]
[1757005567275,0.03,205.43,205.41,4.48835096]
[1757005567957,0.03,205.43,205.42,0.66]
[1757005569045,0.03,205.43,205.41,9.35646126]
[1757005569245,0.03,205.43,205.42,0.66]
[1757005569460,0.03,205.43,205.42,4.25599256]
[1757005569648,0.03,205.43,205.42,8.74434352]
[1757005571042,0.03,205.43,205.42,12.95241868]
[1757005571248,0.03,205.43,205.42,8.46406772]
[1757005572151,0.03,205.43,205.42,12.95241868]
[1757005572480,0.03,205.43,205.42,8.46406772]
[1757005572771,0.03,205.43,205.42,12.95858374]
[1757005572971,0.03,205.43,205.42,8.47023278]
[1757005573350,0.03,205.43,205.42,12.95858374]
[1757005573565,0.03,205.43,205.42,3.60215762]
[1757005573767,0.75,205.43,205.42,3.60215762]
[1757005575081,0.03,205.43,205.42,3.60215762]
[1757005575269,0.75,205.43,205.42,3.60215762]
[1757005575875,0.03,205.43,205.42,3.60215762]
[1757005576472,0.75,205.43,205.42,3.60215762]
[1757005576681,0.75,205.43,205.42,3.60728105]
[1757005578086,5.23835096,205.43,205.42,3.60728105]
[1757005578378,5.23835096,205.43,205.38,4.8689778]
[1757005578575,5.23835096,205.43,205.39,4.28779795]
[1757005578883,5.23835096,205.43,205.4,3.60774132]
[1757005579181,0.75,205.43,205.41,3.60774132]
[1757005579378,0.75,205.43,205.42,3.60774132]
[1757005579576,5.18835096,205.43,205.42,3.60774132]
[1757005579770,10.05618915,205.43,205.39,3.60794674]
[1757005579971,30.48835096,205.4,205.32,4.87025226]
[1757005580278,4.48835096,205.37,205.33,3.60933512]
[1757005580486,0.67,205.37,205.34,3.60933512]
[1757005580672,0.67,205.37,205.35,3.60933512]
[1757005580989,0.67,205.39,205.36,3.60933512]
[1757005581178,4.48835096,205.4,205.37,3.60933512]
[1757005581380,5.15835096,205.4,205.38,3.60933512]
[1757005581578,0.7,205.43,205.39,4.28609028]
[1757005581772,0.7,205.43,205.4,3.60609028]
[1757005581976,0.7,205.43,205.39,5.16835096]
[1757005582157,0.03,205.43,205.4,4.28511807]
[1757005582365,0.03,205.43,205.41,3.60481725]
[1757005582966,0.7,205.43,205.41,3.60481725]
[1757005583172,5.15835096,205.42,205.36,4.86949746]
[1757005583377,5.15835096,205.41,205.37,3.60530664]
[1757005583580,4.48835096,205.42,205.38,4.28530664]
[1757005583881,0.67,205.41,205.39,3.60530664]
[1757005584083,5.18835096,205.43,205.4,3.60530664]
[1757005584267,4.51835096,205.43,205.37,5.16835096]
[1757005584477,5.18835096,205.43,205.38,8.77401402]
[1757005584667,5.18835096,205.43,205.39,9.15444927]
[1757005584870,5.18835096,205.43,205.4,3.60566306]
[1757005585190,0.03,205.43,205.41,3.60566306]
[1757005585386,0.7,205.43,205.39,9.35713717]
[1757005585573,0.7,205.43,205.4,3.6048071]
[1757005585883,0.7,205.43,205.39,10.03713717]
[1757005585884,5.18835096,205.43,205.41,3.6048071]
[1757005586189,0.67,205.42,205.38,4.86901129]
[1757005586486,0.67,205.41,205.39,3.60472237]
[1757005586659,0.67,205.41,205.4,3.60472237]